[Event "European Online Club-ch-C 2021"]
[Site "Online"]
[Date "2021.03.27"]
[Round "6.3"]
[White "Gallevci, Yagiz"]
[Black "Zimmermann, Luc"]
[Result "1-0"]
[ECO "C05"]
[WhiteElo "2069"]
[BlackElo "2151"]
[Annotator "NA"]
[PlyCount "121"]
[EventDate "2021.03.27"]
[EventType "team-tourn"]
[EventCountry "NET"]
[SourceTitle "playchess.com"]
[Source "ChessBase"]
[SourceQuality "1"]
[TimeControl "900+5"]

1. e4 {[%emt 0:00:00]} e6 {[%emt 0:00:04]} 2. d4 {[%emt 0:00:02]} d5 {[%emt 0:00:03]} 3. Nd2 {[%emt 0:00:01]} Nf6 {[%emt 0:00:02]} 4. e5 {[%emt 0:00:16]} Nfd7 {[%emt 0:00:05]} 5. f4 {[%emt 0:00:08]} c5 {[%emt 0:00:03]} 6. c3 {[%emt 0:00:01]} Nc6 {[%emt 0:00:05]} 7. Ndf3 {[%emt 0:00:03]} Qb6 {[%emt 0:00:05]} 8. g3 {[%emt 0:00:33]} Be7 {[%emt 0:00:03]} 9. Kf2 {[%emt 0:00:16]} a5 {[%emt 0:01:17]} 10. a4 {[%emt 0:00:49]} O-O {[%emt 0:01:53]} 11. Kg2 {[%emt 0:00:06]} f5 {[%emt 0:00:21]} 12. h3 {[%emt 0:00:54]} cxd4 {[%emt 0:01:18]} 13. cxd4 {[%emt 0:00:12]} Qd8 {[%emt 0:00:40]} 14. g4 {[%emt 0:00:40]} Nb6 {[%emt 0:00:33]} 15. Ne2 {[%emt 0:04:45]} Bd7 {[%emt 0:00:24]} 16. Nc3 {[%emt 0:00:24]} Rc8 {[%emt 0:00:50]} 17. gxf5 {[%emt 0:01:08]} exf5 {[%emt 0:00:15]} 18. Bd2 {[%emt 0:00:40]} Be8 {[%emt 0:04:14]} 19. Rc1 {[%emt 0:02:38]} Bh5 {[%emt 0:00:07]} 20. Be3 {[%emt 0:00:02]} Nb4 {[%emt 0:01:10]} 21. b3 {[%emt 0:00:44]} Na8 {[%emt 0:00:48]} 22. Nb5 {[%emt 0:00:35]} Nc7 {[%emt 0:00:59]} 23. Nxc7 {[%emt 0:00:04]} Rxc7 {[%emt 0:00:02]} 24. Be2 {[%emt 0:00:01]} Rxc1 {[%emt 0:00:50]} 25. Qxc1 {[%emt 0:00:04]} Qd7 {[%emt 0:00:04]} 26. Qd2 {[%emt 0:00:27]} Bd8 {[%emt 0:00:41]} 27. Kh2 {[%emt 0:00:29]} Bb6 {[%emt 0:00:03]} 28. Rc1 {[%emt 0:00:20]} Rc8 {[%emt 0:00:07]} 29. Bb5 {[%emt 0:00:40]} Qd8 {[%emt 0:00:07]} 30. Ng5 {[%emt 0:00:07]} Rxc1 {[%emt 0:00:05]} 31. Qxc1 {[%emt 0:00:00]} Qc7 {[%emt 0:00:08]} 32. Qxc7 {[%emt 0:00:13]} Bxc7 {[%emt 0:00:00]} 33. Kg3 {[%emt 0:00:12]} Bb6 {[%emt 0:00:02]} 34. Nf3 {[%emt 0:00:07]} Kf8 {[%emt 0:00:08]} 35. Ne1 {[%emt 0:00:06]} Be8 {[%emt 0:00:03]} 36. Be2 {[%emt 0:00:05]} g6 {[%emt 0:00:04]} 37. Kf2 {[%emt 0:00:04]} Ke7 {[%emt 0:00:01]} 38. Bd1 {[%emt 0:00:06]} Bd7 {[%emt 0:00:02]} 39. Ke2 {[%emt 0:00:01]} Ke6 {[%emt 0:00:02]} 40. Kd2 {[%emt 0:00:02]} Ba7 {[%emt 0:00:01]} 41. Nf3 {[%emt 0:00:02]} b5 {[%emt 0:00:10]} 42. Ng5+ {[%emt 0:00:03]} Ke7 {[%emt 0:00:03]} 43. Nxh7 {[%emt 0:00:04]} bxa4 {[%emt 0:00:02]} 44. bxa4 {[%emt 0:00:00]} Nc6 {[%emt 0:00:05]} 45. Nf6 {[%emt 0:00:03]} Nxd4 {[%emt 0:00:04]} 46. Nxd5+ {[%emt 0:00:05]} Kd8 {[%emt 0:00:06]} 47. Kd3 {[%emt 0:00:10]} Nc6 {[%emt 0:00:04]} 48. Bxa7 {[%emt 0:00:02]} Nxa7 {[%emt 0:00:00]} 49. Kd4 {[%emt 0:00:05]} Bc6 {[%emt 0:00:07]} 50. Bb3 {[%emt 0:00:12]} Nc8 {[%emt 0:00:02]} 51. Kc5 {[%emt 0:00:05]} Bd7 {[%emt 0:00:17]} 52. Nc3 {[%emt 0:00:14]} Kc7 {[%emt 0:00:10]} 53. Bf7 {[%emt 0:00:02]} Ne7 {[%emt 0:00:04]} 54. Bc4 {[%emt 0:00:07]} Be8 {[%emt 0:00:07]} 55. Bb3 {[%emt 0:00:06]} Kb7 {[%emt 0:00:12]} 56. Ne2 {[%emt 0:00:02]} Kc7 {[%emt 0:00:03]} 57. Nd4 {[%emt 0:00:01]} Kb7 {[%emt 0:00:03]} 58. Kd6 {[%emt 0:00:10]} Nc6 {[%emt 0:00:09]} 59. Bd5 {[%emt 0:00:03]} Kb6 {[%emt 0:00:03]} 60. Bxc6 {[%emt 0:00:03]} Bxc6 {[%emt 0:00:02]} 61. Nxc6 {[%emt 0:00:01]} 1-0

[Event "European Online Club-ch-C 2021"]
[Site "Online"]
[Date "2021.03.27"]
[Round "6.4"]
[White "De Vries, Leon"]
[Black "Yagiz, Bora"]
[Result "0-1"]
[ECO "A09"]
[WhiteElo "2021"]
[BlackElo "1877"]
[Annotator "NA"]
[PlyCount "74"]
[EventDate "2021.03.27"]
[EventType "team-tourn"]
[EventCountry "NET"]
[SourceTitle "playchess.com"]
[Source "ChessBase"]
[SourceQuality "1"]
[TimeControl "900+5"]

1. Nf3 {[%emt 0:00:00]} Nf6 {[%emt 0:00:19]} 2. c4 {[%emt 0:00:05]} e6 {[%emt 0:00:04]} 3. g3 {[%emt 0:00:03]} d5 {[%emt 0:00:04]} 4. Bg2 {[%emt 0:00:03]} d4 {[%emt 0:00:16]} 5. O-O {[%emt 0:00:12]} c5 {[%emt 0:00:59]} 6. d3 {[%emt 0:00:15]} Nc6 {[%emt 0:00:09]} 7. e3 {[%emt 0:00:23]} e5 {[%emt 0:00:47]} 8. exd4 {[%emt 0:00:07]} exd4 {[%emt 0:00:03]} 9. Re1+ {[%emt 0:00:43]} Be7 {[%emt 0:00:05]} 10. Ne5 {[%emt 0:01:47]} Nxe5 {[%emt 0:00:13]} 11. Rxe5 {[%emt 0:00:02]} O-O {[%emt 0:00:03]} 12. Bg5 {[%emt 0:00:12]} Bd6 {[%emt 0:03:41]} 13. Re1 {[%emt 0:01:40]} h6 {[%emt 0:00:21]} 14. Bxf6 {[%emt 0:00:21]} Qxf6 {[%emt 0:00:03]} 15. Na3 {[%emt 0:00:25]} a6 {[%emt 0:00:11]} 16. Nc2 {[%emt 0:01:02]} Rb8 {[%emt 0:00:44]} 17. a4 {[%emt 0:00:59]} Bd7 {[%emt 0:02:29]} 18. Qd2 {[%emt 0:01:09]} Qg5 {[%emt 0:01:02]} 19. Qxg5 {[%emt 0:02:11]} hxg5 {[%emt 0:00:02]} 20. b4 {[%emt 0:00:04]} b6 {[%emt 0:01:34]} 21. b5 {[%emt 0:02:26]} a5 {[%emt 0:00:19]} 22. Rad1 {[%emt 0:00:35]} Bg4 {[%emt 0:00:35]} 23. f3 {[%emt 0:00:24]} Bf5 {[%emt 0:00:11]} 24. Na1 {[%emt 0:00:07]} Rbe8 {[%emt 0:00:21]} 25. Bf1 {[%emt 0:00:03]} Re3 {[%emt 0:02:05]} 26. Rxe3 {[%emt 0:00:43]} dxe3 {[%emt 0:00:01]} 27. Re1 {[%emt 0:00:06]} Be5 {[%emt 0:00:02]} 28. Nc2 {[%emt 0:00:07]} Bd4 {[%emt 0:00:05]} 29. Nxe3 {[%emt 0:00:25]} Re8 {[%emt 0:00:02]} 30. Kf2 {[%emt 0:00:01]} Kf8 {[%emt 0:00:30]} 31. h3 {[%emt 0:00:30]} f6 {[%emt 0:00:06]} 32. f4 {[%emt 0:00:07]} gxf4 {[%emt 0:00:04]} 33. gxf4 {[%emt 0:00:04]} Bc8 {[%emt 0:00:06]} 34. Kf3 {[%emt 0:00:22]} Bb7+ {[%emt 0:00:02]} 35. Kf2 {[%emt 0:00:02]} Kf7 {[%emt 0:00:01]} 36. Re2 {[%emt 0:00:08]} Kg6 {[%emt 0:00:06]} 37. Re1 {[%emt 0:00:07]} Kh5 {[%emt 0:00:06]} 0-1

[Event "European Online Club-ch-C 2021"]
[Site "Online"]
[Date "2021.03.27"]
[Round "6.5"]
[White "Wirig, Anthony"]
[Black "Migot, Tangi"]
[Result "1/2-1/2"]
[ECO "D04"]
[WhiteElo "2500"]
[BlackElo "2353"]
[Annotator "ChessBase"]
[PlyCount "60"]
[EventDate "2021.03.27"]
[EventType "team-tourn"]
[EventCountry "NET"]
[SourceTitle "playchess.com"]
[Source "ChessBase"]
[SourceQuality "1"]
[TimeControl "900+5"]

1. d4 {[%emt 0:00:00]} d5 {[%emt 0:00:03]} 2. Nf3 {[%emt 0:00:13]} Nf6 {[%emt 0:00:03]} 3. e3 {[%emt 0:00:10]} c6 {[%emt 0:00:09]} 4. Bd3 {[%emt 0:00:23]} Bg4 {[%emt 0:00:28]} 5. Nbd2 {[%emt 0:00:25]} Nbd7 {[%emt 0:00:18]} 6. h3 {[%emt 0:00:02]} Bh5 {[%emt 0:00:13]} 7. b3 {[%emt 0:01:28]} e6 {[%emt 0:00:13]} 8. Bb2 {[%emt 0:00:17]} Bb4 {[%emt 0:01:21]} 9. a3 {[%emt 0:00:48]} Bxf3 {[%emt 0:00:27]} 10. gxf3 {[%emt 0:00:21]} Be7 {[%emt 0:00:11]} 11. f4 {[%emt 0:00:08]} g6 {[%emt 0:00:13]} 12. Qe2 {[%emt 0:02:12]} b5 {[%emt 0:01:39]} 13. O-O {[%emt 0:01:41]} O-O {[%emt 0:00:11]} 14. a4 {[%emt 0:00:21]} a6 {[%emt 0:00:20]} 15. axb5 {[%emt 0:01:52]} axb5 {[%emt 0:00:03]} 16. Rxa8 {[%emt 0:00:02]} Qxa8 {[%emt 0:00:01]} 17. Ra1 {[%emt 0:00:01]} Qb7 {[%emt 0:00:05]} 18. Qd1 {[%emt 0:00:09]} Ra8 {[%emt 0:00:12]} 19. Rxa8+ {[%emt 0:00:17]} Qxa8 {[%emt 0:00:00]} 20. Qa1 {[%emt 0:00:02]} Qxa1+ {[%emt 0:04:44]} 21. Bxa1 {[%emt 0:00:03]} Bb4 {[%emt 0:00:01]} 22. c3 {[%emt 0:00:50]} Ba5 {[%emt 0:00:07]} 23. Kf1 {[%emt 0:00:11]} h6 {[%emt 0:00:09]} 24. Ke2 {[%emt 0:00:15]} Kf8 {[%emt 0:00:19]} 25. Bb2 {[%emt 0:00:36]} Ke8 {[%emt 0:00:10]} 26. f3 {[%emt 0:00:17]} Nh5 {[%emt 0:00:21]} 27. Nb1 {[%emt 0:00:25]} Bd8 {[%emt 0:00:22]} 28. Nd2 {[%emt 0:00:43]} Ba5 {[%emt 0:00:05]} 29. Nf1 {[%emt 0:00:41]} Bd8 {[%emt 0:00:21]} 30. Nd2 {[%emt 0:00:20]} Ba5 {[%emt 0:00:13]} 1/2-1/2

[Event "European Online Club-ch-C 2021"]
[Site "Online"]
[Date "2021.03.27"]
[Round "6.6"]
[White "Le Goff, Ronan"]
[Black "Micottis, Dorian"]
[Result "1-0"]
[ECO "D02"]
[WhiteElo "2288"]
[BlackElo "2223"]
[Annotator "NA"]
[PlyCount "87"]
[EventDate "2021.03.27"]
[EventType "team-tourn"]
[EventCountry "NET"]
[SourceTitle "playchess.com"]
[Source "ChessBase"]
[SourceQuality "1"]
[TimeControl "900+5"]

1. d4 {[%emt 0:00:00]} Nf6 {[%emt 0:00:02]} 2. Nf3 {[%emt 0:00:02]} g6 {[%emt 0:00:04]} 3. g3 {[%emt 0:00:02]} Bg7 {[%emt 0:00:04]} 4. Bg2 {[%emt 0:00:01]} O-O {[%emt 0:00:01]} 5. O-O {[%emt 0:00:01]} d5 {[%emt 0:00:01]} 6. c3 {[%emt 0:00:13]} b6 {[%emt 0:00:16]} 7. a4 {[%emt 0:00:27]} a5 {[%emt 0:00:39]} 8. Bf4 {[%emt 0:00:17]} Bb7 {[%emt 0:00:13]} 9. Na3 {[%emt 0:00:13]} Nbd7 {[%emt 0:01:00]} 10. Ne5 {[%emt 0:00:13]} Nh5 {[%emt 0:00:46]} 11. Nd3 {[%emt 0:01:12]} Nxf4 {[%emt 0:00:46]} 12. Nxf4 {[%emt 0:00:00]} c6 {[%emt 0:00:57]} 13. e4 {[%emt 0:00:33]} dxe4 {[%emt 0:00:46]} 14. Bxe4 {[%emt 0:00:06]} e5 {[%emt 0:00:18]} 15. dxe5 {[%emt 0:02:04]} Nxe5 {[%emt 0:00:06]} 16. Nd3 {[%emt 0:03:22]} Ba6 {[%emt 0:02:31]} 17. Nxe5 {[%emt 0:00:05]} Bxf1 {[%emt 0:01:12]} 18. Nd7 {[%emt 0:03:19]} Re8 {[%emt 0:01:29]} 19. Bxc6 {[%emt 0:00:05]} Bh3 {[%emt 0:02:29]} 20. Qd5 {[%emt 0:02:23]} Rc8 {[%emt 0:00:32]} 21. Rd1 {[%emt 0:00:06]} Bg4 {[%emt 0:00:53]} 22. f3 {[%emt 0:00:18]} Be6 {[%emt 0:00:02]} 23. Qb5 {[%emt 0:00:05]} Bxd7 {[%emt 0:01:36]} 24. Rxd7 {[%emt 0:00:49]} Qf6 {[%emt 0:00:03]} 25. Be4 {[%emt 0:00:20]} Rcd8 {[%emt 0:00:07]} 26. Rd3 {[%emt 0:00:36]} Rxd3 {[%emt 0:00:02]} 27. Qxe8+ {[%emt 0:00:03]} Bf8 {[%emt 0:00:10]} 28. Bxd3 {[%emt 0:00:02]} Qd6 {[%emt 0:00:03]} 29. Qe4 {[%emt 0:00:11]} h5 {[%emt 0:00:02]} 30. Nc4 {[%emt 0:00:06]} Qc5+ {[%emt 0:00:02]} 31. Kg2 {[%emt 0:00:05]} b5 {[%emt 0:00:11]} 32. axb5 {[%emt 0:00:05]} Qxb5 {[%emt 0:00:00]} 33. Qe2 {[%emt 0:00:10]} Qg5 {[%emt 0:00:08]} 34. Ne3 {[%emt 0:00:06]} h4 {[%emt 0:00:04]} 35. f4 {[%emt 0:00:02]} Qf6 {[%emt 0:00:05]} 36. Qf3 {[%emt 0:00:04]} Qb6 {[%emt 0:00:07]} 37. Nc4 {[%emt 0:00:04]} Qb3 {[%emt 0:00:06]} 38. Qe2 {[%emt 0:00:07]} a4 {[%emt 0:00:04]} 39. f5 {[%emt 0:00:05]} Kg7 {[%emt 0:00:13]} 40. fxg6 {[%emt 0:00:04]} fxg6 {[%emt 0:00:02]} 41. Qe5+ {[%emt 0:00:04]} Kf7 {[%emt 0:00:01]} 42. Qf4+ {[%emt 0:00:06]} Kg7 {[%emt 0:00:04]} 43. Qe4 {[%emt 0:00:07]} h3+ {[%emt 0:00:08]} 44. Kxh3 {[%emt 0:00:04]} 1-0

[Event "European Online Club-ch-C 2021"]
[Site "Online"]
[Date "2021.03.27"]
[Round "6.7"]
[White "Bruch, Jochen"]
[Black "Bouget, Alexandre"]
[Result "0-1"]
[ECO "A07"]
[WhiteElo "2187"]
[BlackElo "2247"]
[Annotator "NA"]
[PlyCount "52"]
[EventDate "2021.03.27"]
[EventType "team-tourn"]
[EventCountry "NET"]
[SourceTitle "playchess.com"]
[Source "ChessBase"]
[SourceQuality "1"]
[TimeControl "900+5"]

1. Nf3 {[%emt 0:00:00]} d5 {[%emt 0:00:03]} 2. g3 {[%emt 0:00:03]} Nc6 {[%emt 0:00:04]} 3. Bg2 {[%emt 0:00:13]} e5 {[%emt 0:00:04]} 4. d3 {[%emt 0:00:12]} f6 {[%emt 0:00:32]} 5. Nbd2 {[%emt 0:00:53]} Be6 {[%emt 0:00:03]} 6. c4 {[%emt 0:00:51]} d4 {[%emt 0:00:04]} 7. Qb3 {[%emt 0:01:20]} Rb8 {[%emt 0:00:17]} 8. O-O {[%emt 0:00:07]} Qd7 {[%emt 0:00:03]} 9. Re1 {[%emt 0:00:06]} Bh3 {[%emt 0:00:03]} 10. Bh1 {[%emt 0:00:04]} h5 {[%emt 0:00:13]} 11. e3 {[%emt 0:00:05]} dxe3 {[%emt 0:00:11]} 12. fxe3 {[%emt 0:01:09]} h4 {[%emt 0:00:09]} 13. d4 {[%emt 0:00:24]} hxg3 {[%emt 0:00:03]} 14. hxg3 {[%emt 0:00:03]} Nge7 {[%emt 0:02:02]} 15. d5 {[%emt 0:02:36]} Qg4 {[%emt 0:00:07]} 16. Kf2 {[%emt 0:00:09]} Nf5 {[%emt 0:02:38]} 17. dxc6 {[%emt 0:02:15]} Nxg3 {[%emt 0:00:02]} 18. cxb7 {[%emt 0:02:22]} Nxh1+ {[%emt 0:00:04]} 19. Ke2 {[%emt 0:00:07]} Bg2 {[%emt 0:03:27]} 20. Qb5+ {[%emt 0:02:04]} Kd8 {[%emt 0:00:04]} 21. Qd5+ {[%emt 0:00:06]} Bd6 {[%emt 0:00:04]} 22. c5 {[%emt 0:00:18]} e4 {[%emt 0:00:15]} 23. cxd6 {[%emt 0:00:19]} Bxf3+ {[%emt 0:00:26]} 24. Nxf3 {[%emt 0:00:14]} Rh2+ {[%emt 0:00:06]} 25. Kd1 {[%emt 0:00:13]} Qxf3+ {[%emt 0:00:03]} 26. Re2 {[%emt 0:00:03]} Qxe2# {[%emt 0:00:01]} 0-1

[Event "European Online Club-ch-C 2021"]
[Site "Online"]
[Date "2021.03.27"]
[Round "6.8"]
[White "Lahoche, Dorian"]
[Black "Kirsch, Laurent"]
[Result "1/2-1/2"]
[ECO "B30"]
[WhiteElo "2124"]
[BlackElo "2120"]
[Annotator "NA"]
[PlyCount "77"]
[EventDate "2021.03.27"]
[EventType "team-tourn"]
[EventCountry "NET"]
[SourceTitle "playchess.com"]
[Source "ChessBase"]
[SourceQuality "1"]
[TimeControl "900+5"]

1. e4 {[%emt 0:00:00]} c5 {[%emt 0:00:04]} 2. Nc3 {[%emt 0:00:03]} Nc6 {[%emt 0:00:02]} 3. Bb5 {[%emt 0:00:03]} Nd4 {[%emt 0:00:03]} 4. Nf3 {[%emt 0:00:01]} a6 {[%emt 0:00:04]} 5. Bd3 {[%emt 0:00:04]} e6 {[%emt 0:00:23]} 6. O-O {[%emt 0:01:05]} Nc6 {[%emt 0:00:06]} 7. Re1 {[%emt 0:00:11]} b5 {[%emt 0:00:11]} 8. Bf1 {[%emt 0:00:54]} Bb7 {[%emt 0:00:12]} 9. d4 {[%emt 0:00:19]} cxd4 {[%emt 0:00:11]} 10. Nxd4 {[%emt 0:00:00]} d6 {[%emt 0:00:08]} 11. Nxc6 {[%emt 0:00:30]} Bxc6 {[%emt 0:00:03]} 12. a4 {[%emt 0:00:29]} bxa4 {[%emt 0:00:58]} 13. Nxa4 {[%emt 0:00:44]} Nf6 {[%emt 0:00:06]} 14. Nc3 {[%emt 0:00:44]} Qb6 {[%emt 0:00:50]} 15. Nd5 {[%emt 0:00:56]} Qb7 {[%emt 0:00:08]} 16. Rxa6 {[%emt 0:01:31]} Nxd5 {[%emt 0:01:03]} 17. Rxa8+ {[%emt 0:00:03]} Qxa8 {[%emt 0:00:02]} 18. exd5 {[%emt 0:00:01]} Bxd5 {[%emt 0:00:01]} 19. c4 {[%emt 0:01:00]} Bc6 {[%emt 0:00:10]} 20. b4 {[%emt 0:00:55]} Be7 {[%emt 0:00:07]} 21. Bb2 {[%emt 0:00:09]} O-O {[%emt 0:00:06]} 22. Qg4 {[%emt 0:00:22]} e5 {[%emt 0:00:44]} 23. b5 {[%emt 0:00:59]} f5 {[%emt 0:00:34]} 24. Qg3 {[%emt 0:00:30]} Bb7 {[%emt 0:00:46]} 25. c5 {[%emt 0:00:52]} dxc5 {[%emt 0:00:35]} 26. Bc4+ {[%emt 0:00:06]} Kh8 {[%emt 0:00:02]} 27. Bxe5 {[%emt 0:01:33]} Bf6 {[%emt 0:00:08]} 28. f4 {[%emt 0:00:42]} Be4 {[%emt 0:00:27]} 29. Bd3 {[%emt 0:00:35]} Qb7 {[%emt 0:01:35]} 30. Bxe4 {[%emt 0:00:40]} fxe4 {[%emt 0:00:04]} 31. Qb3 {[%emt 0:00:14]} Bxe5 {[%emt 0:01:30]} 32. fxe5 {[%emt 0:00:00]} Re8 {[%emt 0:00:09]} 33. Rf1 {[%emt 0:00:36]} Qe7 {[%emt 0:00:45]} 34. Qd5 {[%emt 0:00:29]} e3 {[%emt 0:00:28]} 35. Qe4 {[%emt 0:00:13]} Kg8 {[%emt 0:00:24]} 36. Qxe3 {[%emt 0:00:15]} Qxe5 {[%emt 0:00:04]} 37. Qxe5 {[%emt 0:00:06]} Rxe5 {[%emt 0:00:06]} 38. Rb1 {[%emt 0:00:05]} Re7 {[%emt 0:00:02]} 39. b6 {[%emt 0:00:05]} 1/2-1/2

[Event "European Online Club-ch-C 2021"]
[Site "Online"]
[Date "2021.03.27"]
[Round "6.10"]
[White "Subelj, Jan"]
[Black "Esipenko, Andrey"]
[Result "1/2-1/2"]
[ECO "C79"]
[WhiteElo "2418"]
[BlackElo "2677"]
[Annotator "ChessBase"]
[PlyCount "71"]
[EventDate "2021.03.27"]
[EventType "team-tourn"]
[EventCountry "NET"]
[SourceTitle "playchess.com"]
[Source "ChessBase"]
[SourceQuality "1"]
[TimeControl "900+5"]

1. e4 {[%emt 0:00:00]} e5 {[%emt 0:00:18]} 2. Nf3 {[%emt 0:00:18]} Nc6 {[%emt 0:00:05]} 3. Bb5 {[%emt 0:00:06]} a6 {[%emt 0:00:03]} 4. Ba4 {[%emt 0:00:03]} Nf6 {[%emt 0:00:05]} 5. O-O {[%emt 0:00:04]} d6 {[%emt 0:00:07]} 6. d4 {[%emt 0:02:08]} b5 {[%emt 0:00:08]} 7. Bb3 {[%emt 0:01:35]} Nxd4 {[%emt 0:00:10]} 8. Nxd4 {[%emt 0:00:06]} exd4 {[%emt 0:00:00]} 9. Bd5 {[%emt 0:00:59]} Nxd5 {[%emt 0:00:36]} 10. exd5 {[%emt 0:00:03]} Be7 {[%emt 0:00:00]} 11. Qxd4 {[%emt 0:00:11]} O-O {[%emt 0:00:01]} 12. Nc3 {[%emt 0:00:09]} Bf5 {[%emt 0:01:03]} 13. Ne4 {[%emt 0:00:59]} Re8 {[%emt 0:00:17]} 14. Bd2 {[%emt 0:00:41]} Bxe4 {[%emt 0:01:07]} 15. Qxe4 {[%emt 0:00:04]} Bf6 {[%emt 0:00:02]} 16. Qb4 {[%emt 0:00:03]} Re5 {[%emt 0:03:09]} 17. Qb3 {[%emt 0:00:30]} Re4 {[%emt 0:01:22]} 18. Rae1 {[%emt 0:00:48]} Rc4 {[%emt 0:00:07]} 19. Re2 {[%emt 0:00:59]} Qd7 {[%emt 0:00:07]} 20. Rfe1 {[%emt 0:00:03]} h6 {[%emt 0:00:01]} 21. Re4 {[%emt 0:00:14]} Rxe4 {[%emt 0:00:11]} 22. Rxe4 {[%emt 0:00:03]} Re8 {[%emt 0:00:15]} 23. Rxe8+ {[%emt 0:00:04]} Qxe8 {[%emt 0:00:02]} 24. Qe3 {[%emt 0:03:35]} Qa8 {[%emt 0:00:09]} 25. Qb3 {[%emt 0:00:14]} Bd4 {[%emt 0:02:03]} 26. g3 {[%emt 0:01:00]} Qe8 {[%emt 0:00:25]} 27. Be3 {[%emt 0:00:03]} Bxe3 {[%emt 0:00:49]} 28. Qxe3 {[%emt 0:00:04]} Qxe3 {[%emt 0:00:17]} 29. fxe3 {[%emt 0:00:01]} f5 {[%emt 0:00:00]} 30. e4 {[%emt 0:00:22]} fxe4 {[%emt 0:00:06]} 31. Kf2 {[%emt 0:00:01]} Kf7 {[%emt 0:00:01]} 32. Ke3 {[%emt 0:00:02]} Kf6 {[%emt 0:00:00]} 33. Kxe4 {[%emt 0:00:02]} Kg5 {[%emt 0:00:01]} 34. h3 {[%emt 0:00:06]} h5 {[%emt 0:00:02]} 35. b4 {[%emt 0:00:28]} Kf6 {[%emt 0:00:21]} 36. Kf4 {[%emt 0:00:09]} 1/2-1/2

[Event "European Online Club-ch-C 2021"]
[Site "Online"]
[Date "2021.03.27"]
[Round "6.11"]
[White "Shimanov, Aleksandr"]
[Black "Skuhala, Jernej"]
[Result "1-0"]
[ECO "A01"]
[WhiteElo "2597"]
[BlackElo "2351"]
[Annotator "ChessBase"]
[PlyCount "103"]
[EventDate "2021.03.27"]
[EventType "team-tourn"]
[EventCountry "NET"]
[SourceTitle "playchess.com"]
[Source "ChessBase"]
[SourceQuality "1"]
[TimeControl "900+5"]

1. b3 {[%emt 0:00:00]} e5 {[%emt 0:00:04]} 2. Bb2 {[%emt 0:00:04]} Nc6 {[%emt 0:00:02]} 3. e3 {[%emt 0:00:02]} Nf6 {[%emt 0:00:02]} 4. Bb5 {[%emt 0:00:28]} Bd6 {[%emt 0:00:05]} 5. Ne2 {[%emt 0:00:22]} a6 {[%emt 0:00:09]} 6. Bxc6 {[%emt 0:00:03]} dxc6 {[%emt 0:00:02]} 7. d3 {[%emt 0:00:10]} O-O {[%emt 0:00:12]} 8. Nd2 {[%emt 0:00:15]} Re8 {[%emt 0:00:12]} 9. e4 {[%emt 0:00:14]} Qe7 {[%emt 0:01:32]} 10. a4 {[%emt 0:00:48]} Bc5 {[%emt 0:00:50]} 11. h3 {[%emt 0:00:35]} Nh5 {[%emt 0:00:54]} 12. Nf3 {[%emt 0:00:30]} Bb4+ {[%emt 0:01:52]} 13. Kf1 {[%emt 0:00:03]} Bd6 {[%emt 0:00:52]} 14. g4 {[%emt 0:00:16]} Qf6 {[%emt 0:00:18]} 15. Kg2 {[%emt 0:00:21]} Nf4+ {[%emt 0:00:26]} 16. Nxf4 {[%emt 0:00:02]} Qxf4 {[%emt 0:00:02]} 17. Qd2 {[%emt 0:00:28]} Qxd2 {[%emt 0:00:20]} 18. Nxd2 {[%emt 0:00:00]} Be6 {[%emt 0:00:01]} 19. Nf1 {[%emt 0:03:17]} f6 {[%emt 0:00:31]} 20. Ne3 {[%emt 0:00:03]} Bc5 {[%emt 0:00:04]} 21. Kf3 {[%emt 0:00:54]} Kf7 {[%emt 0:00:28]} 22. Rag1 {[%emt 0:00:58]} h6 {[%emt 0:01:07]} 23. Nf5 {[%emt 0:00:20]} a5 {[%emt 0:02:23]} 24. Ke2 {[%emt 0:00:19]} b5 {[%emt 0:00:05]} 25. Ra1 {[%emt 0:00:05]} Reb8 {[%emt 0:00:20]} 26. Bc3 {[%emt 0:00:08]} b4 {[%emt 0:00:19]} 27. Bd2 {[%emt 0:00:15]} Rh8 {[%emt 0:00:18]} 28. f4 {[%emt 0:00:12]} g6 {[%emt 0:01:18]} 29. Ng3 {[%emt 0:00:07]} exf4 {[%emt 0:00:32]} 30. Bxf4 {[%emt 0:00:03]} Bd6 {[%emt 0:00:02]} 31. Raf1 {[%emt 0:00:22]} Ke7 {[%emt 0:00:18]} 32. Rf3 {[%emt 0:00:22]} Raf8 {[%emt 0:00:09]} 33. Kf2 {[%emt 0:00:43]} Bc5+ {[%emt 0:00:50]} 34. Kg2 {[%emt 0:00:06]} g5 {[%emt 0:00:18]} 35. Bc1 {[%emt 0:01:51]} Bd4 {[%emt 0:00:05]} 36. Rhf1 {[%emt 0:00:04]} Be5 {[%emt 0:00:19]} 37. Be3 {[%emt 0:00:15]} Rf7 {[%emt 0:00:10]} 38. Nh5 {[%emt 0:00:07]} Rhf8 {[%emt 0:00:09]} 39. d4 {[%emt 0:00:54]} Bd6 {[%emt 0:00:03]} 40. Bc1 {[%emt 0:00:02]} Bd7 {[%emt 0:00:26]} 41. Bb2 {[%emt 0:00:04]} Ke6 {[%emt 0:00:03]} 42. Nxf6 {[%emt 0:00:13]} Rxf6 {[%emt 0:00:13]} 43. d5+ {[%emt 0:00:05]} cxd5 {[%emt 0:00:01]} 44. Rxf6+ {[%emt 0:00:02]} Rxf6 {[%emt 0:00:01]} 45. Rxf6+ {[%emt 0:00:00]} Ke7 {[%emt 0:00:01]} 46. exd5 {[%emt 0:00:06]} Bc8 {[%emt 0:00:01]} 47. Kf3 {[%emt 0:00:08]} Bb7 {[%emt 0:00:01]} 48. Ke4 {[%emt 0:00:02]} c6 {[%emt 0:00:02]} 49. Rxh6 {[%emt 0:00:06]} cxd5+ {[%emt 0:00:01]} 50. Kf5 {[%emt 0:00:04]} Bc8+ {[%emt 0:00:12]} 51. Kxg5 {[%emt 0:00:02]} Bc5 {[%emt 0:00:01]} 52. Kf4 {[%emt 0:00:10]} 1-0